fUST/lending_fUST_20250113
["ID","MTS","AMOUNT","RATE_DAILY","PERIOD"]
[348773141,1736779833392,-307.5539381,0.00022795,2]
[348773142,1736779833402,-161.3333495,0.00022795,2]
[348773143,1736779833412,-214.9026291,0.00022795,2]
[348773144,1736779833422,-153.0,0.00022795,2]
[348773145,1736779833432,-214.9026291,0.00022795,2]
[348773146,1736779833442,-214.9026291,0.00022795,2]
[348773147,1736779833452,-153.0,0.00022795,2]
[348773148,1736779833462,-153.0,0.00022795,2]
[348773149,1736779833472,-155.0,0.00022931,2]
[348773150,1736779833482,-500.0,0.00022999,2]
[348773151,1736779833492,-500.0,0.00022999,3]
[348773152,1736779833502,-500.0,0.00022999,3]
[348773153,1736779833512,-500.0,0.00022999,3]
[348773154,1736779833522,-500.0,0.00022999,3]
[348773155,1736779833532,-500.0,0.00022999,3]
[348773156,1736779833542,-756.55,0.00023,4]
[348773157,1736779833557,-352.9748642,0.00023,2]
[348773158,1736779833567,-200.0,0.00023,3]
[348773159,1736779833576,-324.754376,0.00023,10]
[348773160,1736779833587,-10040.56471124,0.00023,2]
[348773161,1736779833596,-153.0,0.00023068,2]
[348773162,1736779833606,-153.0,0.00023068,2]
[348773163,1736779833615,-153.0,0.00023068,2]
[348773164,1736779833625,-504.18648522,0.00023273,2]
[348773165,1736779833634,-500.0,0.00023273,3]
[348773166,1736779833643,-150.0,0.00023357,2]
[348773167,1736779833653,-150.098,0.00023357,2]
[348773168,1736779833663,-174.8940029,0.00023382,2]
[348773169,1736779833673,-600.0,0.00023408,2]
[348773170,1736779833683,-1200.0,0.0002345,2]
[348773171,1736779833693,-500.0,0.00023511,2]
[348773172,1736779833703,-500.0,0.00023511,3]
[348773173,1736779833712,-274.15810389,0.00023511,3]
[348773174,1736779833722,-500.0,0.00023511,2]
[348773175,1736779833732,-2195.38933146,0.00023517,2]
[348773176,1736779833742,-466.89265057,0.00023517,2]
[348773177,1736779833752,-500.0,0.00023547,3]
[348773178,1736779833762,-186.28,0.0002355,4]
[348773179,1736779833772,-1204.624,0.000236,2]
[348773180,1736779833782,-188.0,0.000236,2]
[348773181,1736779833791,-182.48807052,0.00023611,2]
[348773182,1736779833804,-500.0,0.00023611,2]
[348773183,1736779833814,-240.48913459,0.00023611,2]
[348773184,1736779833824,-151.0,0.00023612,2]
[348773185,1736779833834,-151.0,0.00023612,2]
[348773186,1736779833844,-151.0,0.00023612,2]
[348773187,1736779833854,-151.0,0.00023612,2]
[348773188,1736779833863,-151.0,0.00023612,2]
[348773189,1736779833873,-151.0,0.00023612,2]
[348773190,1736779833883,-151.0,0.00023612,7]
[348773191,1736779833893,-151.0,0.00023612,7]
[348773192,1736779833903,-157.97716,0.00023612,7]
[348773193,1736779833912,-536.35491315,0.00023613,3]
[348773194,1736779833922,-151.0,0.00023614,7]
[348773195,1736779833933,-151.0,0.00023614,7]
[348773196,1736779833943,-151.0,0.00023614,7]
[348773197,1736779833953,-151.0,0.00023614,7]
[348773198,1736779833963,-151.0,0.00023614,7]
[348773199,1736779833973,-151.0,0.00023614,7]
[348773200,1736779833983,-151.0,0.00023614,7]
[348773201,1736779833993,-151.0,0.00023614,7]
[348773202,1736779834003,-220.757856,0.00023614,7]
[348773203,1736779834013,-151.0,0.00023614,7]
[348773204,1736779834023,-151.0,0.00023614,7]
[348773205,1736779834034,-153.219176,0.00023614,7]
[348773206,1736779834044,-151.0,0.00023615,7]
[348773207,1736779834055,-151.0,0.00023615,7]
[348773208,1736779834065,-151.0,0.00023615,7]
[348773209,1736779834075,-151.0,0.00023615,7]
[348773210,1736779834086,-151.0,0.00023615,7]
[348773211,1736779834096,-151.0,0.00023615,7]
[348773212,1736779834106,-151.0,0.00023615,7]
[348773213,1736779834116,-151.0,0.00023615,7]
[348773214,1736779834125,-151.0,0.00023615,7]
[348773215,1736779834135,-151.0,0.00023615,7]
[348773216,1736779834145,-287.81656,0.00023615,7]
[348773217,1736779834155,-287.81656,0.00023615,7]
[348773218,1736779834165,-287.81656,0.00023615,7]
[348773219,1736779834175,-287.81656,0.00023615,7]
[348773220,1736779834186,-287.81656,0.00023615,7]
[348773221,1736779834199,-287.81656,0.00023615,7]
[348773222,1736779834210,-287.81656,0.00023615,7]
[348773223,1736779834221,-287.81656,0.00023615,7]
[348773224,1736779834231,-287.81656,0.00023615,7]
[348773225,1736779834243,-287.81656,0.00023615,7]
[348773226,1736779834253,-287.81656,0.00023615,7]
[348773227,1736779834263,-287.81656,0.00023615,7]
[348773228,1736779834275,-287.81656,0.00023615,7]
[348773229,1736779834285,-287.81656,0.00023615,7]
[348773230,1736779834297,-287.81656,0.00023615,7]
[348773231,1736779834307,-287.81656,0.00023615,7]
[348773232,1736779834317,-287.81656,0.00023615,7]
[348773233,1736779834328,-287.81656,0.00023615,7]
[348773234,1736779834338,-287.81656,0.00023615,7]
[348773235,1736779834348,-287.81657,0.00023615,7]
[348773236,1736779834359,-317.35248625,0.00023616,2]
[348773237,1736779834369,-153.0,0.00023616,2]
[348773238,1736779834379,-9084.90072212,0.00023617,5]
[348773239,1736779834388,-7799.83065495,0.00023617,5]
[348773240,1736779834399,-210433.67685756,0.00023617,10]
[348773241,1736779834412,-243479.99167935,0.00023617,10]
[348773242,1736779834423,-363.748,0.00023617,10]
[348773243,1736779834434,-75377.87771912,0.00023617,10]
[348773244,1736779834444,-702588.5307565,0.00023617,10]
[348773245,1736779834453,-7893.33602709,0.00023617,2]
[348773246,1736779834463,-1133622.28717071,0.00023617,10]
[348773247,1736779834473,-444917.96833058,0.00023617,10]
[348773248,1736779834485,-2935.37661068,0.00023617,10]
[348773249,1736779834500,-8973.34742877,0.00023617,10]
[348773250,1736779834511,-452.5375,0.00023617,10]
[348773251,1736779834524,-574.23428863,0.00023617,10]
[348773252,1736779834535,-4680.2318335,0.00023617,10]
[348773398,1736779839617,-463.99780197,0.00021083,3]
[348773402,1736779839643,-181.47219803,0.00021083,3]
[348773404,1736779839653,-265.12582111,0.00021517,2]
[348773406,1736779839663,-150.0,0.00023357,2]
[348773408,1736779839672,-151.0,0.00023617,7]
[348773410,1736779839682,-151.0,0.00023617,7]
[348773412,1736779839692,-27.68276536,0.00023617,7]
[348773414,1736779839704,-123.31723464,0.00023617,7]
[348773416,1736779839714,-151.0,0.00023617,7]
[348773418,1736779839724,-151.0,0.00023617,7]
[348773420,1736779839734,-71.02352946,0.00023617,7]
[348773422,1736779839746,-79.97647054,0.00023617,7]
[348773424,1736779839756,-151.0,0.00023617,7]
[348773426,1736779839766,-151.0,0.00023617,7]
[348773428,1736779839777,-151.0,0.00023617,7]
[348773430,1736779839787,-151.0,0.00023617,7]
[348773432,1736779839797,-151.020663,0.00023617,7]
[348773434,1736779839810,-151.020663,0.00023617,7]
[348773436,1736779839820,-151.020663,0.00023617,7]
[348773438,1736779839831,-151.020663,0.00023617,7]
[348773440,1736779839841,-151.020663,0.00023617,7]
[348773442,1736779839851,-151.020663,0.00023617,7]
[348773444,1736779839861,-151.020663,0.00023617,7]
[348773446,1736779839871,-151.020663,0.00023617,7]
[348773448,1736779839881,-151.020663,0.00023617,7]
[348773450,1736779839891,-151.020663,0.00023617,7]
[348773453,1736779839900,-151.020663,0.00023617,7]
[348773456,1736779839910,-151.020663,0.00023617,7]
[348773460,1736779839920,-151.020663,0.00023617,7]
[348773462,1736779839931,-151.020663,0.00023617,7]
[348773465,1736779839941,-151.020663,0.00023617,7]
[348773468,1736779839951,-151.020663,0.00023617,7]
[348773472,1736779839961,-151.020663,0.00023617,7]
[348773476,1736779839971,-151.020663,0.00023617,7]
[348773480,1736779839981,-151.020663,0.00023617,7]
[348773482,1736779839990,-151.020663,0.00023617,7]
[348773484,1736779840000,-151.0,0.00023617,7]
[348773485,1736779840010,-151.0,0.00023617,7]
[348773489,1736779840020,-151.0,0.00023617,7]
[348773492,1736779840029,-151.0,0.00023617,7]
[348773494,1736779840041,-225.889996,0.00023617,7]
[348773496,1736779840050,-151.0,0.00023617,7]
[348773498,1736779840064,-151.0,0.00023617,7]
[348773500,1736779840073,-151.0,0.00023617,7]
[348773502,1736779840083,-151.0,0.00023617,7]
[348773504,1736779840092,-151.0,0.00023617,7]
[348773506,1736779840102,-151.0,0.00023617,7]
[348773508,1736779840111,-151.0,0.00023617,7]
[348773512,1736779840121,-151.0,0.00023617,7]
[348773514,1736779840130,-151.0,0.00023617,7]
[348773516,1736779840141,-151.0,0.00023617,7]
[348773518,1736779840151,-97273.64274304,0.00023617,10]
[348773520,1736779840161,-657456.5050794,0.00023617,10]
[348773522,1736779840171,-503097.05192324,0.00023617,10]
[348773524,1736779840183,-2969783.91834935,0.00023617,10]
[348773526,1736779840193,-520.05503821,0.00023617,2]
[348773528,1736779840202,-160155.28456137,0.00023617,2]
[348773530,1736779840213,-606030.23504308,0.00023617,10]
[348773532,1736779840223,-38595.47554132,0.00023617,5]
[348773538,1736779840233,-4641774.3213074,0.00023617,10]
[348773540,1736779840245,-541.656,0.00023617,10]
[348773542,1736779840257,-35109.06400958,0.00023617,10]
[348773545,1736779840269,-33351.12941164,0.00023617,10]
[348773547,1736779840280,-8840.33628851,0.00023617,10]
[348773549,1736779840291,-23743.05492828,0.00023617,10]
[348773551,1736779840305,-270333.54397843,0.00023617,10]
[348773632,1736779841074,-88650.0,0.00023617,10]
[348773639,1736779841132,-740652.99990881,0.00023617,10]
[348773642,1736779841159,-73920.74724134,0.00023617,10]
[348773645,1736779841171,-45818.86106416,0.00023617,10]
[348773648,1736779841192,-701529.93220151,0.00023617,10]
[348773650,1736779841203,-3279.79208154,0.00023617,10]
[348773652,1736779841215,-3040.7251379,0.00023617,10]
[348773654,1736779841228,-592.29458905,0.00023617,10]
[348773658,1736779841249,-9061.80853375,0.00023617,10]
[348773660,1736779841263,-883.0280535,0.00023617,10]
[348773952,1736779843698,-1477.5,0.00023617,10]
[348773954,1736779843710,-4999.57233769,0.00023617,10]
[348773956,1736779843722,-9193.00000014,0.00023617,10]
[348773959,1736779843734,-2159.9999976,0.00023617,10]
[348773961,1736779843746,-1800.0,0.00023617,10]
[348773984,1736779843956,-1500.45898531,0.00023617,10]
[348773987,1736779843968,-9000.0,0.00023617,10]
[348773989,1736779843982,-303.65166693,0.00023617,10]
[348773991,1736779843994,-296.12891217,0.00023617,10]
[348774479,1736779846825,-26639.9989,0.00023617,10]
[348774484,1736779846838,-33893.25706515,0.00023617,10]
[348774489,1736779846850,-13527.64096811,0.00023617,10]
[348774494,1736779846861,-6951.9999998,0.00023617,10]
[348774498,1736779846879,-8990.0,0.00023617,10]
[348774501,1736779846890,-3002.36254709,0.00023617,10]
[348774506,1736779846902,-9000.0,0.00023617,10]
[348774514,1736779846927,-888.04,0.00023617,10]
[348774518,1736779846939,-1082.45220663,0.00023617,10]
[348778168,1736779993459,153.02,0.000236,31]
[348778172,1736780188304,160.925273,0.00013973,2]
[348778191,1736780594802,153.04,0.000236,31]
[348778192,1736780594854,153.04,0.000236,31]
[348778193,1736780594919,153.04,0.000236,31]
[348778194,1736780594992,153.04,0.000236,31]
[348778195,1736780595045,153.04,0.000236,31]
[348778196,1736780595106,153.04,0.000236,31]
[348778197,1736780595175,153.04,0.000236,31]
[348778199,1736780674101,300.0,0.0002,8]
[348778200,1736780677449,586.17773758,0.000235,60]
[348778201,1736780825275,-160.925273,0.00020807,2]
[348778202,1736780825308,-3151.04848513,0.00020992,2]
[348778203,1736780825337,-3151.04848513,0.00020997,2]
[348778204,1736780825368,-3151.04848513,0.00021,2]
[348778205,1736780825398,-150.0,0.00021,2]
[348778206,1736780825426,-300.0,0.00021082,2]
[348778207,1736780825453,-500.0,0.00021083,3]
[348778208,1736780825487,-500.0,0.00021083,3]
[348778209,1736780825515,-500.0,0.00021083,3]
[348778210,1736780825543,-500.0,0.00021083,3]
[348778211,1736780825571,-377.29,0.00021083,3]
[348778212,1736780825599,-370.95518331,0.00021083,3]
[348778213,1736780829209,-129.04481669,0.00021083,3]
[348778214,1736780829255,-199.90944263,0.00021084,3]
[348778215,1736780829301,-250.70949045,0.00021084,3]
[348778216,1736780829343,-917.91457503,0.00021243,2]
[348778218,1736780974106,-427.70168725,0.00020547,2]
[348778219,1736780974132,-250.49562484,0.00021242,3]
[348778264,1736781033279,-391.9478792,0.00021242,3]
[348778266,1736781033290,-1014.72,0.00021242,7]
[348778268,1736781033301,-500.0,0.00021242,3]
[348778270,1736781033312,-500.0,0.00021242,3]
[348778272,1736781033322,-500.0,0.00021242,2]
[348778274,1736781033333,-774.54401223,0.00021243,2]
[348778276,1736781033345,-23207.54141274,0.00021243,2]
[348778278,1736781033355,-500.0,0.00021357,3]
[348778280,1736781033365,-228.21,0.00021516,3]
[348778283,1736781033376,-500.0,0.00021516,2]
[348778286,1736781033386,-176.75054741,0.00021517,2]
[348778289,1736781033397,-162.7752634,0.00021533,2]
[348778292,1736781033407,-202.68999996,0.00021631,3]
[348778295,1736781033417,-2013.0,0.00021639,2]
[348778298,1736781033428,-500.0,0.0002179,2]
[348778300,1736781033439,-500.0,0.00021999,3]
[348778302,1736781033450,-500.0,0.00021999,3]
[348778305,1736781033460,-500.0,0.00021999,3]
[348778307,1736781033469,-426.27619656,0.00021999,3]
[348778308,1736781033479,-500.0,0.00021999,3]
[348778310,1736781033489,-500.0,0.00021999,3]
[348778312,1736781033499,-530.076919,0.00021999,3]
[348778315,1736781033509,-500.0,0.00021999,3]
[348778317,1736781033520,-533.38736992,0.00021999,3]
[348778318,1736781033531,-500.0,0.00021999,3]
[348778320,1736781033542,-472.11,0.00022,2]
[348778323,1736781033553,-1078.5064548,0.000222,2]
[348778325,1736781033564,-500.0,0.00022273,3]
[348778326,1736781033575,-500.0,0.00022273,3]
[348778329,1736781033585,-500.0,0.00022273,3]
[348778330,1736781033594,-507.07,0.0002244,2]
[348778333,1736781033605,-500.0,0.00022547,3]
[348778335,1736781033615,-385.12828622,0.00022586,2]
[348778337,1736781033625,-500.0,0.00022588,2]
[348778338,1736781033635,-151.0,0.00022588,2]
[348778340,1736781033645,-11937.46438549,0.00022766,2]
[348778343,1736781033655,-500.0,0.0002277,3]
[348778344,1736781033664,-272.77679171,0.0002277,3]
[348778346,1736781033674,-500.0,0.0002277,3]
[348778348,1736781033684,-500.0,0.0002277,3]
[348778351,1736781033694,-534.85807091,0.0002277,3]
[348778353,1736781033705,-500.0,0.0002277,3]
[348778355,1736781033716,-256.15378473,0.0002277,3]
[348778357,1736781033727,-500.0,0.0002277,3]
[348778359,1736781033736,-500.0,0.0002277,3]
[348778373,1736781033747,-531.95155675,0.0002277,3]
[348778376,1736781033887,-500.0,0.0002277,3]
[348778378,1736781033898,-500.0,0.0002277,3]
[348778380,1736781033908,-500.0,0.0002277,3]
[348778382,1736781033919,-500.0,0.0002277,3]
[348778384,1736781033930,-511.73294023,0.0002277,3]
[348778386,1736781033940,-500.0,0.0002277,3]
[348778388,1736781033950,-500.0,0.0002277,3]
[348778390,1736781033960,-500.0,0.0002277,3]
[348778392,1736781033970,-553.73773502,0.0002277,3]
[348778394,1736781033980,-500.0,0.0002277,3]
[348778396,1736781033990,-573.93849307,0.0002277,2]
[348778398,1736781034000,-500.0,0.0002277,3]
[348778400,1736781034011,-855.79,0.0002277,3]
[348778402,1736781034025,-500.0,0.0002277,3]
[348778404,1736781034036,-500.0,0.0002277,7]
[348778406,1736781034046,-500.0,0.00022821,3]
[348778408,1736781034057,-210.68817992,0.000229,2]
[348778410,1736781034067,-500.0,0.00022995,2]
[348778412,1736781034077,-221.01352326,0.00022995,2]
[348778413,1736781034087,-500.0,0.00022995,2]
[348778415,1736781034097,-500.0,0.00022995,2]
[348778417,1736781034108,-293.76756285,0.00022995,2]
[348778419,1736781034118,-568.67789165,0.00022995,2]
[348778421,1736781034128,-621.58255398,0.00022995,2]
[348778423,1736781034138,-500.0,0.00022995,2]
[348778425,1736781034150,-163.90042536,0.00022995,2]
[348778427,1736781034160,-500.0,0.00022996,3]
[348778429,1736781034171,-190.73304967,0.00022996,3]
[348778431,1736781034181,-359.39417865,0.00022996,3]
[348778433,1736781034191,-500.0,0.00022996,3]
[348778435,1736781034200,-642.59406699,0.00022996,3]
[348778437,1736781034210,-222.85159741,0.00022996,3]
[348778439,1736781034220,-500.0,0.00022996,3]
[348778441,1736781034230,-500.0,0.00022996,3]
[348778443,1736781034239,-500.0,0.00022996,3]
[348778445,1736781034249,-500.0,0.00022996,3]
[348778447,1736781034259,-500.0,0.00022996,3]
[348778449,1736781034273,-151.35385989,0.00022996,3]
[348778451,1736781034283,-3935.63,0.00022996,2]
[348778453,1736781034293,-504.90963952,0.00022996,3]
[348778455,1736781034303,-500.0,0.00022996,3]
[348778456,1736781034313,-500.0,0.00022996,3]
[348778457,1736781034323,-500.0,0.00022996,3]
[348778458,1736781034333,-500.0,0.00022996,3]
[348778459,1736781034342,-500.0,0.00022996,3]
[348778460,1736781034351,-409.70993221,0.00022996,3]
[348778461,1736781034361,-267.7522739,0.00022996,3]
[348778462,1736781034370,-500.0,0.00022996,3]
[348778463,1736781034379,-519.57,0.00022996,3]
[348778464,1736781034389,-574.31,0.00022996,3]
[348778465,1736781034398,-192.619,0.00022998,2]
[348778466,1736781034408,-176.41110381,0.00022999,3]
[348778467,1736781034417,-500.0,0.00022999,3]
[348778468,1736781034426,-500.82691081,0.00022999,3]
[348778469,1736781034435,-330.3869182,0.00022999,3]
[348778470,1736781034445,-500.0,0.00022999,2]
[348778471,1736781034455,-188.0,0.00022999,2]
[348778472,1736781034464,-503.82780142,0.00022999,3]
[348778473,1736781034474,-327.03934224,0.00022999,3]
[348778474,1736781034483,-502.80536633,0.00022999,3]
[348778475,1736781034492,-7438.69753278,0.00023,3]
[348778476,1736781034502,-210.68817992,0.00023011,2]
[348778477,1736781034512,-500.0,0.00023044,3]
[348778478,1736781034525,-452.69,0.00023044,3]
[348778479,1736781034544,-855.79,0.00023044,3]
[348778480,1736781034553,-500.0,0.00023095,3]
[348778481,1736781034563,-210.68817992,0.00023122,2]
[348778483,1736781034574,-1000.0,0.00023135,2]
[348778484,1736781034584,-11937.46438549,0.00023161,2]
[348778485,1736781034594,-210.68817992,0.00023233,2]
[348778487,1736781034604,-3935.63,0.0002327,2]
[348778489,1736781034614,-500.0,0.0002327,3]
[348778491,1736781034626,-476.17,0.0002327,3]
[348778493,1736781034636,-643.46,0.0002327,3]
[348778495,1736781034645,-384.29139334,0.00023318,3]
[348778497,1736781034655,-855.79,0.00023318,3]
[348778499,1736781034665,-210.68817992,0.00023344,2]
[348778501,1736781034675,-190.53,0.00023369,3]
[348778503,1736781034684,-2013.0,0.0002337,4]
[348778505,1736781034693,-302.9697091,0.00023383,10]
[348778507,1736781034703,-604.14203932,0.00023408,2]
[348778509,1736781034712,-500.0,0.00023455,9]
[348778511,1736781034722,-210.68817992,0.00023456,2]
[348778513,1736781034732,-205.95082245,0.00023499,2]
[348778515,1736781034742,-522.87508596,0.00023499,2]
[348778517,1736781034751,-500.0,0.00023499,2]
[348778519,1736781034760,-500.0,0.00023499,2]
[348778521,1736781034772,-294543.43075212,0.000235,3]
[348778523,1736781034782,-1200.0,0.000235,2]
[348778525,1736781034792,-11937.4643855,0.00023521,2]
[348778527,1736781034802,-157.0,0.00023524,2]
[348778529,1736781034811,-157.0,0.00023524,2]
[348778531,1736781034821,-157.0,0.00023524,2]
[348778533,1736781034830,-157.0,0.00023524,2]
[348778535,1736781034840,-157.0,0.00023524,2]
[348778537,1736781034849,-157.0,0.00023524,2]
[348778539,1736781034858,-157.0,0.00023524,2]
[348778541,1736781034867,-157.0,0.00023524,2]
[348778543,1736781034877,-157.0,0.00023524,2]
[348778545,1736781034886,-157.0,0.00023524,2]
[348778547,1736781034896,-157.0,0.00023524,2]
[348778549,1736781034906,-157.0,0.00023524,2]
[348778551,1736781034916,-157.0,0.00023524,2]
[348778553,1736781034925,-157.0,0.00023524,2]
[348778555,1736781034935,-157.0,0.00023524,2]
[348778557,1736781034945,-178.0,0.00023524,2]
[348778559,1736781034955,-157.0,0.00023524,2]
[348778561,1736781034964,-178.0,0.00023524,2]
[348778563,1736781034974,-157.0,0.00023524,2]
[348778565,1736781034984,-157.0,0.00023524,2]
[348778567,1736781034994,-157.0,0.00023524,2]
[348778569,1736781035003,-157.0,0.00023524,2]
[348778572,1736781035013,-164.01,0.00023524,2]
[348778573,1736781035027,-1290.7810495,0.00023544,2]
[348778905,1736781038834,-2644.8489505,0.00023544,2]
[348778907,1736781038844,-500.0,0.00023544,3]
[348778909,1736781038855,-210.68817992,0.00023567,2]
[348778911,1736781038865,-855.79,0.00023592,3]
[348778913,1736781038875,-151.0,0.000236,5]
[348778915,1736781038884,-210.16266731,0.00023617,2]
[348778917,1736781038894,-151.0,0.00023617,7]
[348778919,1736781038903,-151.0,0.00023617,7]
[348778922,1736781038913,-151.0,0.00023617,7]
[348778924,1736781038923,-151.0,0.00023617,7]
[348778926,1736781038932,-151.0,0.00023617,7]
[348778928,1736781038942,-151.0,0.00023617,7]
[348778930,1736781038952,-158.020237,0.00023617,7]
[348778932,1736781038961,-151.0,0.00023617,7]
[348778934,1736781038971,-151.0,0.00023617,7]
[348778936,1736781038980,-151.0,0.00023617,7]
[348778938,1736781038990,-151.0,0.00023617,7]
[348778940,1736781039000,-151.0,0.00023617,7]
[348778942,1736781039010,-151.0,0.00023617,7]
[348778944,1736781039022,-151.0,0.00023617,7]
[348778946,1736781039032,-151.0,0.00023617,7]
[348778948,1736781039041,-151.0,0.00023617,7]
[348778950,1736781039051,-261.20024,0.00023617,7]
[348778952,1736781039061,-151.0,0.00023617,7]
[348778955,1736781039071,-151.0,0.00023617,7]
[348778958,1736781039080,-151.0,0.00023617,7]
[348778960,1736781039089,-151.0,0.00023617,7]
[348778962,1736781039099,-151.0,0.00023617,7]
[348778964,1736781039108,-151.0,0.00023617,7]
[348778966,1736781039117,-151.0,0.00023617,7]
[348778968,1736781039127,-151.0,0.00023617,7]
[348778970,1736781039136,-151.0,0.00023617,7]
[348778972,1736781039146,-221.900336,0.00023617,7]
[348778974,1736781039155,-221.900336,0.00023617,7]
[348778976,1736781039164,-221.900336,0.00023617,7]
[348778978,1736781039174,-221.900336,0.00023617,7]
[348778980,1736781039184,-221.900336,0.00023617,7]
[348778982,1736781039193,-221.900336,0.00023617,7]
[348778984,1736781039202,-221.900336,0.00023617,7]
[348778986,1736781039211,-221.900336,0.00023617,7]
[348778988,1736781039221,-221.900336,0.00023617,7]
[348778990,1736781039231,-221.900336,0.00023617,7]
[348778992,1736781039240,-221.900336,0.00023617,7]
[348778994,1736781039250,-221.900336,0.00023617,7]
[348778996,1736781039259,-221.900336,0.00023617,7]
[348778998,1736781039269,-221.900336,0.00023617,7]
[348779000,1736781039280,-221.900336,0.00023617,7]
[348779002,1736781039289,-221.900336,0.00023617,7]
[348779004,1736781039299,-221.900336,0.00023617,7]
[348779006,1736781039308,-221.900336,0.00023617,7]
[348779007,1736781039317,-221.900336,0.00023617,7]
[348779010,1736781039327,-221.900336,0.00023617,7]
[348779011,1736781039336,-162.415145,0.00023617,7]
[348779014,1736781039345,-162.415145,0.00023617,7]
[348779016,1736781039355,-162.415145,0.00023617,7]
[348779018,1736781039365,-162.415145,0.00023617,7]
[348779020,1736781039375,-162.415145,0.00023617,7]
[348779022,1736781039384,-162.415145,0.00023617,7]
[348779024,1736781039394,-162.415145,0.00023617,7]
[348779026,1736781039403,-162.415145,0.00023617,7]
[348779027,1736781039413,-162.415145,0.00023617,7]
[348779030,1736781039423,-162.415145,0.00023617,7]
[348779031,1736781039432,-162.415145,0.00023617,7]
[348779034,1736781039442,-162.415145,0.00023617,7]
[348779035,1736781039451,-162.415145,0.00023617,7]
[348779037,1736781039461,-162.415145,0.00023617,7]
[348779039,1736781039471,-162.415145,0.00023617,7]
[348779041,1736781039481,-162.415145,0.00023617,7]
[348779044,1736781039491,-162.415145,0.00023617,7]
[348779046,1736781039500,-162.415145,0.00023617,7]
[348779048,1736781039510,-162.415145,0.00023617,7]
[348779050,1736781039520,-162.415145,0.00023617,7]
[348779051,1736781039530,-151.0,0.00023617,7]
[348779054,1736781039540,-151.0,0.00023617,7]
[348779056,1736781039554,-151.0,0.00023617,7]
[348779058,1736781039564,-151.0,0.00023617,7]
[348779060,1736781039574,-151.0,0.00023617,7]
[348779062,1736781039584,-151.0,0.00023617,7]
[348779064,1736781039594,-151.0,0.00023617,7]
[348779066,1736781039603,-151.0,0.00023617,7]
[348779068,1736781039612,-151.0,0.00023617,7]
[348779070,1736781039623,-280.321612,0.00023617,7]
[348779072,1736781039632,-156.34982,0.0002362,7]
[348779074,1736781039641,-151.0,0.0002362,7]
[348779076,1736781039651,-151.0,0.0002362,7]
[348779078,1736781039660,-151.0,0.0002362,7]
[348779080,1736781039669,-151.0,0.0002362,7]
[348779082,1736781039678,-151.0,0.0002362,7]
[348779083,1736781039687,-151.0,0.0002362,7]
[348779086,1736781039697,-151.0,0.0002362,7]
[348779088,1736781039707,-151.0,0.0002362,7]
[348779089,1736781039716,-151.0,0.0002362,7]
[348779092,1736781039726,-151.0,0.0002362,7]
[348779094,1736781039736,-151.0,0.0002362,7]
[348779096,1736781039745,-164.691296,0.0002362,7]
[348779098,1736781039754,-152.972493,0.0002362,7]
[348779100,1736781039764,-173.670663,0.0002362,7]
[348779102,1736781039774,-173.670663,0.0002362,7]
[348779104,1736781039783,-173.670663,0.0002362,7]
[348779106,1736781039792,-173.670663,0.0002362,7]
[348779108,1736781039802,-173.670663,0.0002362,7]
[348779110,1736781039811,-173.670663,0.0002362,7]
[348779111,1736781039820,-173.670663,0.0002362,7]
[348779113,1736781039830,-173.670663,0.0002362,7]
[348779115,1736781039839,-173.670663,0.0002362,7]